bitfinex-derivatives/quotes_SOLF0:USTF0_20241218
["timestamp","ask_amount","ask_price","bid_price","bid_amount"]
[1734485709561,2.2417,223.01,222.96,2.26]
[1734485709958,2.2414,223.04,222.99,2.2419]
[1734485710151,8.43294843,223.06,222.96,2.26]
[1734485710152,10.69294843,223.09,222.96,2.26]
[1734485710359,8.43294843,223.09,222.96,2.26]
[1734485710957,2.241,223.08,222.96,2.26]
[1734485711353,8.43294843,223.12,222.96,2.26]
[1734485711559,3.0071,223.14,222.98,8.43294843]
[1734485711756,3.0071,223.14,223.01,8.43294843]
[1734485711959,3.7891,223.14,223.02,3.8201]
[1734485712662,2.2405,223.13,223.02,3.8201]
[1734485713158,8.43294843,223.18,223.04,8.43294843]
[1734485714963,2.2401,223.17,223.04,8.43294843]
[1734485715762,8.43294843,223.18,223.04,8.43294843]
[1734485715967,8.43294843,223.18,223.05,2.26]
[1734485716462,2.2405,223.13,223.07,2.241]
[1734485716665,8.43294843,223.18,223.07,2.241]
[1734485716859,8.43294843,223.15,223.08,2.26]
[1734485718561,8.43294843,223.15,223.04,5.39474949]
[1734485718757,8.43294843,223.12,223.04,2.26]
[1734485718965,2.2414,223.04,222.97,1.4744]
[1734485719163,2.2414,223.04,222.98,2.26]
[1734485719362,8.43294843,223.09,222.99,2.26]
[1734485719573,1.5487,223.08,222.99,2.26]
[1734485719759,1.5487,223.08,222.9,1.5704]
[1734485719963,1.5487,223.08,222.91,2.26]
[1734485720665,1.5487,223.08,222.9,1.5704]
[1734485721058,1.5487,223.08,222.94,2.2423]
[1734485721059,13.48488594,223.05,222.94,2.2423]
[1734485721362,13.48488594,223.05,222.88,1.5088]
[1734485721363,2.26,223.04,222.88,1.5088]
[1734485721563,2.26,223.04,222.84,13.48488594]
[1734485721564,2.2423,222.95,222.89,2.26]
[1734485721765,13.48488594,223.01,222.9,5.39636387]
[1734485722060,2.2426,222.92,222.88,2.26]
[1734485722364,13.48488594,222.97,222.85,2.26]
[1734485722565,1.5813,222.96,222.85,2.26]
[1734485723162,2.2428,222.9,222.85,2.26]
[1734485723465,1.5813,222.96,222.76,13.48488594]
[1734485723466,2.26,222.94,222.76,13.48488594]
[1734485723664,2.26,222.94,222.84,5.25807111]
[1734485723862,2.26,222.94,222.85,2.26]
[1734485724063,2.2427,222.91,222.85,2.26]
[1734485724658,2.2426,222.92,222.85,4.5033]
[1734485724866,2.26,222.94,222.85,4.5033]
[1734485725167,2.26,222.94,222.85,2.26]
[1734485725364,2.2429,222.89,222.85,2.26]
[1734485725567,2.2429,222.89,222.84,5.25807111]
[1734485725768,2.26,222.94,222.84,5.25807111]
[1734485726067,2.2427,222.91,222.85,2.2433]
[1734485726268,2.2427,222.91,222.84,5.25807111]
[1734485726672,2.26,222.94,222.84,5.25807111]
[1734485726864,2.2428,222.9,222.84,5.25807111]
[1734485728966,2.2428,222.9,222.83,4.5034]
[1734485728967,2.243,222.88,222.83,2.26]
[1734485729269,2.243,222.88,222.82,4.5036]
[1734485729565,2.2429,222.9,222.84,2.2434]
[1734485729766,2.26,222.94,222.83,5.45154482]
[1734485730260,2.2427,222.91,222.84,2.2433]
[1734485730762,2.2427,222.91,222.83,5.45154482]
[1734485730763,1.5813,222.96,222.83,5.45154482]
[1734485731364,2.2424,222.94,222.83,5.45154482]
[1734485732366,5.2588,223.0,222.83,5.45154482]
[1734485732666,2.26,223.04,222.84,14.91798594]
[1734485732860,13.48488594,223.05,222.94,2.2423]
[1734485733061,2.2416,223.02,222.95,2.26]
[1734485733261,13.48488594,223.05,222.96,2.26]
[1734485733466,13.48488594,223.05,222.97,2.26]
[1734485733467,2.2417,223.01,222.97,2.26]
[1734485734168,13.48488594,223.05,222.97,2.26]
[1734485734364,13.48488594,223.05,222.93,2.26]
[1734485734570,2.2417,223.01,222.91,2.26]
[1734485734769,13.48488594,223.05,222.92,2.26]
[1734485735367,13.48488594,223.05,222.95,2.2423]
[1734485735566,13.48488594,223.05,222.92,2.26]
[1734485735974,13.48488594,223.05,222.93,2.2424]
[1734485736272,13.48488594,223.05,222.92,2.26]
[1734485736675,2.2417,223.01,222.96,2.2422]
[1734485736871,3.0403,223.07,222.97,2.26]
[1734485737072,3.0403,223.07,222.98,2.26]
[1734485737368,3.0403,223.07,222.99,2.26]
[1734485737566,1.5301,223.07,223.0,2.26]
[1734485737772,1.5301,223.07,223.01,2.26]
[1734485738074,1.4627,223.11,223.02,2.26]
[1734485738274,2.241,223.08,223.03,2.2415]
[1734485738572,2.26,223.16,223.02,2.26]
[1734485738779,13.48488594,223.17,223.08,2.241]
[1734485739070,13.48488594,223.17,223.08,2.26]
[1734485741977,8.42072033,223.16,223.08,2.26]
[1734485742168,8.42072033,223.16,222.98,8.42072033]
[1734485742374,12.30626016,223.19,222.99,2.26]
[1734485742375,8.42072033,223.13,222.99,2.26]
[1734485742576,8.42072033,223.16,223.01,8.42072033]
[1734485742779,2.2402,223.16,223.01,8.42072033]
[1734485743080,15.31902033,223.19,223.01,8.42072033]
[1734485743276,2.2403,223.15,223.09,2.2408]
[1734485743584,13.74502033,223.19,223.1,2.26]
[1734485743774,2.2401,223.17,223.1,2.26]
[1734485743976,13.74502033,223.19,223.1,2.26]
[1734485744779,11.48502033,223.19,223.1,2.26]
[1734485745178,1.4956,223.19,223.1,2.26]
[1734485745383,7.60227184,223.24,223.1,10.68072033]
[1734485745587,1.472,223.24,223.1,10.68072033]
[1734485745781,2.2399,223.19,223.14,2.2403]
[1734485745975,8.42072033,223.23,223.15,2.26]
[1734485746483,1.472,223.24,223.15,2.26]
[1734485748184,1.472,223.24,223.19,2.2398]
[1734485748585,1.472,223.24,223.2,2.24]
[1734485749479,2.2393,223.25,223.2,2.24]
[1734485749681,2.2391,223.27,223.21,2.2396]
[1734485749883,8.42072033,223.32,223.2,2.24]
[1734485750080,2.24,223.34,223.2,2.24]
[1734485750279,8.42072033,223.35,223.23,2.2394]
[1734485750480,8.42072033,223.35,223.2,2.24]
[1734485750883,8.42072033,223.32,223.2,2.24]
[1734485751379,8.42072033,223.29,223.2,2.24]
[1734485751886,2.2395,223.23,223.2,2.24]
[1734485752085,8.42072033,223.29,223.17,2.24]
[1734485752290,8.42072033,223.26,223.17,2.24]
[1734485752487,2.9212,223.25,223.17,2.24]
[1734485752790,2.9212,223.25,223.16,2.24]
[1734485752993,4.4512,223.25,223.16,2.24]
[1734485753385,2.2395,223.23,223.18,2.2399]
[1734485753986,4.4512,223.25,223.18,2.2399]
[1734485754186,4.4512,223.25,223.16,2.24]
[1734485754389,2.9212,223.25,223.16,10.66072033]
[1734485754989,1.4906,223.25,223.21,2.2396]
[1734485755289,1.4906,223.25,223.21,4.4796]
[1734485755487,1.4906,223.25,223.21,2.24]
[1734485758891,1.4906,223.25,223.14,2.24]
[1734485759086,1.4906,223.25,223.06,1.5621]
[1734485759087,8.42072033,223.23,223.07,8.42072033]
[1734485759285,2.2403,223.15,223.09,2.2409]
[1734485759489,1.5374,223.22,223.08,2.24]
[1734485759785,1.5374,223.22,223.13,2.2404]
[1734485759786,2.24,223.18,223.13,2.2404]
[1734485759986,1.5374,223.22,223.13,2.24]
[1734485761383,2.2401,223.17,223.13,2.24]
[1734485762490,1.5374,223.22,223.13,2.24]
[1734485762695,1.5374,223.22,223.13,10.66072033]
[1734485763100,1.5374,223.22,223.13,2.24]
[1734485763495,1.5374,223.22,223.07,8.42072033]
[1734485763496,1.5374,223.22,223.1,2.2407]
[1734485763697,2.2399,223.19,223.11,2.24]
[1734485763992,1.5374,223.22,223.13,8.42072033]
[1734485764198,2.2395,223.23,223.13,8.42072033]
[1734485764497,1.4711,223.24,223.13,8.42072033]
[1734485764698,1.4906,223.25,223.18,2.2399]
[1734485764897,1.4906,223.25,223.19,2.24]
[1734485765598,2.2395,223.23,223.19,2.24]
[1734485766297,1.4906,223.25,223.19,2.24]
[1734485766298,2.2396,223.22,223.19,2.24]
[1734485766996,2.2395,223.23,223.19,2.24]
[1734485767498,1.4906,223.25,223.19,2.24]
[1734485768097,2.2394,223.24,223.19,2.24]
[1734485768401,1.4906,223.25,223.19,2.24]
[1734485769399,2.2396,223.22,223.19,2.24]
[1734485772599,1.4906,223.25,223.19,2.24]
[1734485772796,1.5318,223.28,223.19,2.24]
[1734485773204,2.2393,223.26,223.2,2.2397]
[1734485773896,2.2393,223.26,223.19,2.24]
[1734485774102,2.2393,223.26,223.21,2.2396]
[1734485774297,2.2393,223.26,223.19,2.24]
[1734485774703,2.2393,223.26,223.21,2.2396]
[1734485775102,2.2393,223.26,223.19,2.24]
[1734485775304,2.2393,223.26,223.21,2.2397]
[1734485776199,1.5318,223.28,223.21,2.2397]
[1734485776200,2.2393,223.25,223.21,2.2397]
[1734485776603,2.2393,223.25,223.19,2.24]
[1734485776604,1.5318,223.28,223.22,2.2395]
[1734485776907,2.2392,223.26,223.22,2.2395]
[1734485777102,1.5318,223.28,223.19,2.24]
[1734485777298,1.5318,223.28,223.16,8.42072033]
[1734485777499,8.42072033,223.26,223.15,2.24]
[1734485777701,1.527,223.25,223.12,7.52807017]
[1734485778004,1.527,223.25,222.99,26.47671292]
[1734485778005,8.42072033,223.23,223.07,8.42072033]
[1734485778210,8.42072033,223.2,223.08,2.24]
[1734485778508,1.4855,223.19,223.08,2.24]
[1734485778999,1.4855,223.19,223.09,2.2408]
[1734485779307,2.2404,223.14,223.09,2.2408]
[1734485779703,2.2405,223.13,223.08,4.481]
[1734485780301,2.2405,223.13,223.08,2.24]
[1734485780603,1.4855,223.19,223.09,5.26229395]
[1734485781000,2.2402,223.16,223.09,5.26229395]
[1734485781201,1.4855,223.19,223.09,5.26229395]
[1734485782105,2.2405,223.13,223.09,5.26229395]
[1734485782503,1.4855,223.19,223.08,2.24]
[1734485782802,1.4855,223.19,223.05,2.24]
[1734485782803,8.42072033,223.17,223.05,2.24]
[1734485783108,8.42072033,223.14,223.05,2.24]
[1734485783906,3.8204,223.16,223.05,2.24]
[1734485784204,1.5804,223.16,223.05,2.24]
[1734485784401,1.5804,223.16,223.07,8.42072033]
[1734485784602,2.24,223.18,223.07,8.42072033]
[1734485785200,2.2403,223.15,223.1,2.2408]
[1734485785401,1.4855,223.19,223.1,2.2408]
[1734485785402,1.4855,223.19,223.1,2.24]
[1734485785800,2.24,223.18,223.12,2.2405]
[1734485786004,2.24,223.18,223.1,2.24]
[1734485786706,1.4855,223.19,223.1,10.66072033]
[1734485787011,1.5776,223.22,223.15,2.2402]
[1734485787206,1.5776,223.22,223.15,4.4802]
[1734485788408,3.8172,223.22,223.15,2.24]
[1734485788706,1.5221,223.27,223.16,8.42072033]
[1734485790312,7.73743118,223.31,223.19,8.42072033]
[1734485790510,1.5827,223.31,223.2,2.24]
[1734485792509,3.8214,223.31,223.2,2.24]
[1734485792702,12.19082033,223.35,223.22,8.42072033]
[1734485792703,1.5301,223.35,223.22,8.42072033]
[1734485792907,7.73626207,223.37,223.25,8.42072033]
[1734485793208,7.73626207,223.37,223.3,2.2388]
[1734485793209,2.2382,223.36,223.3,2.2388]
[1734485793405,2.2382,223.36,223.31,2.24]
[1734485795509,5.34510571,223.43,223.31,4.4786]
[1734485795908,11.4969297,223.43,223.31,4.4786]
[1734485796110,2.2381,223.37,223.31,4.4786]
[1734485796611,9.48049091,223.42,223.31,2.24]
[1734485796916,9.93232033,223.44,223.33,2.2384]
[1734485796917,2.2379,223.39,223.33,2.2384]
[1734485801212,2.2382,223.36,223.31,2.2386]
[1734485801420,9.93232033,223.44,223.32,2.24]
[1734485801421,8.42072033,223.41,223.32,2.24]
[1734485801813,2.2379,223.39,223.32,2.24]
[1734485802011,8.42072033,223.41,223.32,2.24]
[1734485802423,2.2382,223.36,223.3,2.2387]
[1734485802616,8.42072033,223.41,223.31,2.24]
[1734485803318,12.17232033,223.44,223.31,7.53433139]
[1734485803720,2.2378,223.4,223.35,2.2382]
[1734485803921,2.2378,223.4,223.31,7.53433139]
[1734485804119,9.4383004,223.43,223.32,2.24]
[1734485804417,2.2376,223.42,223.36,2.2382]
[1734485804617,2.2376,223.42,223.37,2.24]
[1734485807219,2.2377,223.41,223.37,2.24]
[1734485807814,2.2379,223.39,223.37,2.24]
[1734485808013,1.5116,223.44,223.31,13.71505172]
[1734485808014,17.05397872,223.44,223.31,13.71505172]
[1734485808215,19.35938582,223.44,223.32,4.4785]
[1734485808421,2.238,223.38,223.32,4.4785]
[1734485809020,2.2378,223.4,223.32,2.24]
[1734485809222,1.5116,223.44,223.32,2.24]
[1734485810529,2.2377,223.41,223.32,2.24]
[1734485810820,9.93232033,223.44,223.31,5.29433139]
[1734485811021,2.2383,223.35,223.32,2.24]
[1734485812620,2.24,223.43,223.32,2.24]
[1734485812621,2.2382,223.36,223.32,2.24]
[1734485813527,2.24,223.43,223.32,2.24]
[1734485813823,2.24,223.43,223.32,4.4785]
[1734485814028,2.24,223.43,223.32,2.24]
[1734485814524,9.93232033,223.44,223.32,2.24]
[1734485814719,1.5116,223.44,223.32,2.24]
[1734485815321,1.5116,223.44,223.34,2.2383]
[1734485815521,1.5116,223.44,223.31,5.29433139]
[1734485815726,2.238,223.38,223.33,2.2384]
[1734485816424,2.2381,223.37,223.32,4.4785]
[1734485816927,2.2381,223.37,223.32,2.2385]
[1734485817124,2.2377,223.41,223.33,2.24]
[1734485817328,1.5116,223.44,223.33,2.24]
[1734485818132,2.2378,223.4,223.35,2.2382]
[1734485819430,2.2378,223.4,223.36,2.2381]
[1734485820427,2.2378,223.4,223.34,2.2383]
[1734485820629,2.2378,223.4,223.33,2.24]
[1734485820630,1.5116,223.44,223.33,2.24]
[1734485820824,1.5116,223.44,223.31,5.29433139]
[1734485820825,8.42072033,223.43,223.31,5.29433139]
[1734485821029,1.5116,223.44,223.31,5.29433139]
[1734485821030,8.42072033,223.4,223.31,5.29433139]
[1734485821227,8.42072033,223.4,223.3,2.24]
[1734485821732,2.2381,223.37,223.3,2.24]
[1734485821935,8.42072033,223.4,223.24,8.42072033]
[1734485822227,14.52154783,223.4,223.3,2.24]
[1734485822735,8.42072033,223.37,223.22,1.5538]
[1734485822934,3.7985,223.36,223.23,2.24]
[1734485823226,2.2389,223.29,223.23,4.4795]
[1734485824231,2.239,223.28,223.23,4.4795]
[1734485824633,2.239,223.28,223.24,2.2393]
[1734485825832,2.2388,223.3,223.25,7.53711388]
[1734485826034,2.2388,223.3,223.25,5.29791388]
[1734485826427,2.2388,223.3,223.26,2.24]
[1734485826631,2.2389,223.29,223.26,2.24]
[1734485827432,2.2387,223.31,223.26,4.4791]
[1734485827833,3.0571,223.35,223.26,2.24]
[1734485829337,2.2389,223.29,223.26,2.24]
[1734485830235,8.42072033,223.34,223.17,8.42072033]
[1734485830437,8.42072033,223.31,223.18,2.24]
[1734485830635,8.42072033,223.31,223.17,8.42072033]
[1734485830838,2.2395,223.23,223.18,2.24]
[1734485831733,8.42072033,223.28,223.19,2.24]
[1734485831935,1.4919,223.27,223.19,2.24]
[1734485833835,2.2396,223.22,223.19,7.60627163]
[1734485834037,176.31486148,223.34,223.19,7.60627163]
[1734485834038,10.66072033,223.34,223.19,7.60627163]
[1734485834237,17.16122186,223.33,223.19,7.60627163]
[1734485834444,2.239,223.28,223.22,2.2395]
[1734485835146,3.0571,223.35,223.24,8.42072033]
[1734485835340,1.4889,223.35,223.25,2.24]
[1734485835540,2.2384,223.35,223.29,2.2388]
[1734485835736,6.13457705,223.37,223.3,2.24]
[1734485835942,15.59032958,223.37,223.3,2.24]
[1734485836142,1.5769,223.39,223.3,2.24]
[1734485836441,17.17053126,223.39,223.3,2.24]
[1734485836741,15.59363126,223.38,223.3,2.24]
[1734485837042,6.13600732,223.37,223.3,2.24]
[1734485837244,12.26403036,223.38,223.3,2.24]
[1734485837442,2.2387,223.31,223.3,2.24]
[1734485839139,2.2388,223.3,223.28,2.24]
[1734485839343,8.42072033,223.34,223.2,2.2397]
[1734485839639,8.42072033,223.34,223.21,2.24]
[1734485839841,30.13053587,223.34,223.21,2.24]
[1734485840142,21.70981554,223.33,223.21,2.24]
[1734485840348,21.70981554,223.32,223.21,2.24]
[1734485840548,15.58400413,223.31,223.22,2.24]
[1734485840846,6.13143919,223.3,223.22,2.24]
[1734485841143,1.4306,223.32,223.22,2.24]
[1734485841346,23.13253102,223.32,223.22,2.24]
[1734485841544,2.2393,223.26,223.22,2.24]
[1734485842141,2.2393,223.25,223.22,2.24]
[1734485842350,1.4854,223.3,223.22,2.24]
[1734485842642,1.4681,223.29,223.2,2.24]
[1734485843446,2.2395,223.23,223.2,2.24]
[1734485843839,1.4681,223.29,223.2,2.24]
[1734485844040,2.2393,223.25,223.21,2.2397]
[1734485844745,1.4681,223.29,223.2,2.24]
[1734485845844,2.239,223.28,223.23,2.2394]
[1734485846545,2.2391,223.27,223.23,2.2394]
[1734485849347,1.4854,223.3,223.23,2.2394]
[1734485849549,2.239,223.28,223.23,2.2394]
[1734485849743,2.239,223.28,223.24,2.2393]
[1734485850044,2.239,223.28,223.25,2.24]
[1734485850352,1.4854,223.3,223.25,2.24]
[1734485850946,2.2392,223.26,223.25,2.24]
[1734485851147,1.4854,223.3,223.21,2.24]
[1734485851352,1.4456,223.29,223.21,2.24]
[1734485851954,2.2394,223.24,223.21,2.24]
[1734485852251,8.42072033,223.28,223.13,10.00922033]
[1734485852549,3.6856,223.29,223.07,8.42072033]
[1734485852550,8.42072033,223.22,223.07,8.42072033]
[1734485852755,8.42072033,223.19,223.08,2.24]
[1734485852953,2.2406,223.12,223.08,2.24]
[1734485853856,2.2407,223.11,223.08,2.24]
[1734485854057,2.2407,223.11,222.99,1.5209]
[1734485854058,8.42072033,223.16,223.06,2.24]
[1734485854257,8.42072033,223.13,223.04,2.24]
[1734485854454,8.42072033,223.06,222.85,6.22461332]
[1734485854648,2.24,223.06,222.89,1.4648]
[1734485854853,8.42072033,223.03,222.89,1.4648]
[1734485855258,2.242,222.98,222.9,2.2427]
[1734485856953,2.2421,222.97,222.9,2.2427]
[1734485857352,8.42072033,223.03,222.89,1.4648]
[1734485857559,8.42072033,223.03,222.9,2.24]
[1734485857863,8.42072033,223.03,222.86,11.37242033]
[1734485858163,8.42072033,223.03,222.87,2.24]
[1734485858357,2.242,222.98,222.91,2.2427]
[1734485858561,4.369,223.05,222.93,5.41375477]
[1734485858860,4.369,223.05,222.93,7.65375477]
[1734485859066,2.2416,223.02,222.94,2.2423]
[1734485859257,4.369,223.05,222.94,2.2423]
[1734485859462,8.42072033,223.03,222.93,7.65375477]
[1734485859658,2.2422,222.96,222.93,2.24]
[1734485861262,8.42072033,223.0,222.87,2.24]
[1734485861863,2.2425,222.93,222.87,2.24]
[1734485862069,8.42072033,223.0,222.87,2.24]
[1734485862368,8.42072033,223.0,222.89,5.34800329]
[1734485862569,2.2424,222.94,222.89,5.34800329]
[1734485863257,2.2422,222.96,222.89,5.34800329]
[1734485863658,6.609,223.05,222.89,5.34800329]
[1734485866472,8.42072033,223.0,222.89,5.34800329]
[1734485866764,8.42072033,222.97,222.81,8.42072033]
[1734485866969,8.42072033,222.94,222.82,4.4835]
[1734485867269,1.5752,222.93,222.82,2.24]
[1734485867458,1.5752,222.93,222.81,2.2437]
[1734485867459,3.1467,222.93,222.81,2.2437]
[1734485867663,8.42072033,222.91,222.8,2.24]
[1734485867866,2.24,222.9,222.8,2.24]
[1734485868061,2.2435,222.83,222.8,5.31921791]
[1734485868363,8.42072033,222.88,222.77,2.24]
[1734485868570,8.42072033,222.88,222.76,2.24]
[1734485868768,2.2437,222.82,222.76,2.24]
[1734485868962,8.42072033,222.85,222.76,2.24]
[1734485869365,2.2441,222.77,222.76,2.24]
[1734485869563,2.2441,222.77,222.72,2.24]
[1734485869761,8.42072033,222.82,222.72,2.24]
[1734485869971,2.2441,222.78,222.72,2.24]
[1734485870170,2.2441,222.78,222.71,2.2446]
[1734485870367,2.2441,222.78,222.71,4.4846]
[1734485870673,9.92652033,222.82,222.71,5.30413405]
[1734485871066,2.2443,222.75,222.71,5.30413405]
[1734485871271,9.92652033,222.82,222.7,2.24]
[1734485871667,2.2443,222.75,222.7,2.24]
[1734485871866,2.24,222.8,222.7,2.24]
[1734485872069,2.24,222.8,222.7,7.51519255]
[1734485872268,2.24,222.8,222.72,2.2445]
[1734485872269,2.2438,222.8,222.72,2.2445]
[1734485872469,2.2438,222.8,222.7,7.51519255]
[1734485872669,1.5058,222.82,222.7,7.51519255]
[1734485872864,2.2439,222.79,222.72,2.2446]
[1734485874067,1.5058,222.82,222.7,7.51519255]
[1734485874272,1.5715,222.83,222.7,7.51519255]
[1734485875072,2.2438,222.8,222.74,2.2443]
[1734485875270,2.2438,222.8,222.75,2.24]
[1734485875766,2.244,222.78,222.75,2.24]
[1734485876172,2.2442,222.76,222.7,7.51989255]
[1734485876470,2.24,222.81,222.7,7.51519255]
[1734485876668,2.2445,222.73,222.7,7.51519255]
[1734485877071,2.2445,222.73,222.7,2.24]
[1734485877868,2.2446,222.72,222.67,2.54342]
[1734485878570,15.75452381,222.81,222.67,0.30342]
[1734485878770,13.51452381,222.77,222.67,0.30342]
[1734485878971,2.24,222.76,222.67,0.30342]
[1734485880568,2.24,222.76,222.67,8.04947512]
[1734485881464,2.24,222.76,222.67,5.80437512]
[1734485882676,2.2447,222.71,222.67,5.80437512]
[1734485883270,13.51452381,222.74,222.37,35.27258001]
[1734485883473,13.51452381,222.7,222.49,1.5127]
[1734485883676,3.8012,222.69,222.5,5.2974]
[1734485883874,2.2453,222.66,222.57,5.28259906]
[1734485884071,14.97442381,222.73,222.58,2.24]
[1734485884469,14.97442381,222.73,222.61,2.2457]
[1734485884788,14.97442381,222.73,222.58,2.24]
[1734485885176,14.97442381,222.73,222.59,2.2459]
[1734485885377,14.97442381,222.73,222.58,2.24]
[1734485885580,2.24,222.72,222.58,2.24]
[1734485885780,2.245,222.69,222.62,2.2456]
[1734485885976,2.24,222.72,222.62,2.2456]
[1734485886178,14.97442381,222.73,222.58,2.24]
[1734485886377,17.21442381,222.73,222.58,2.24]
[1734485887072,2.2452,222.66,222.6,2.2457]
[1734485888180,17.21442381,222.73,222.58,2.24]
[1734485888773,1.5121,222.72,222.58,2.24]
[1734485888980,2.245,222.68,222.59,2.2458]
[1734485889181,1.5121,222.72,222.58,2.24]
[1734485889885,1.5121,222.72,222.57,5.28259906]
[1734485889886,13.51452381,222.69,222.57,5.28259906]
[1734485890079,2.2458,222.61,222.57,5.28259906]
[1734485890577,2.24,222.66,222.56,2.24]
[1734485891882,15.75452381,222.69,222.56,2.24]
[1734485892079,2.24,222.69,222.56,2.24]
[1734485892879,13.51452381,222.66,222.56,2.24]
[1734485893980,8.46165333,222.62,222.56,2.24]
[1734485894689,2.2459,222.59,222.56,2.24]
[1734485894984,8.46165333,222.62,222.54,7.51479048]
[1734485895577,2.246,222.58,222.52,2.2466]
[1734485895778,8.46165333,222.62,222.52,2.2466]
[1734485895976,8.46165333,222.62,222.51,2.24]
[1734485896181,10.01745333,222.62,222.51,2.24]
[1734485896383,2.2461,222.57,222.51,4.4867]
[1734485896580,2.2461,222.57,222.53,5.41515629]
[1734485897080,8.46165333,222.56,222.48,2.26]
[1734485897285,8.46165333,222.56,222.5,5.2597392]
[1734485897788,8.46165333,222.56,222.47,2.43335]
[1734485898087,8.46165333,222.53,222.47,0.17335]
[1734485898282,8.46165333,222.5,222.37,35.27258001]
[1734485898586,2.26,222.53,222.37,35.27258001]
[1734485898587,8.46165333,222.44,222.37,35.27258001]
[1734485899082,2.248,222.38,222.37,22.55358001]
[1734485899292,2.248,222.38,222.37,15.38808001]
[1734485899487,8.46165333,222.38,222.27,2.26]
[1734485899686,8.46165333,222.35,222.27,2.26]
[1734485899888,8.46165333,222.35,222.26,1.5423]
[1734485900085,2.26,222.36,222.26,1.5423]
[1734485900389,2.26,222.38,222.27,5.44388061]
[1734485900584,13.57086461,222.35,222.24,2.26]
[1734485900887,2.2488,222.31,222.2,4.5097]
[1734485901086,13.57086461,222.35,222.23,5.46764358]
[1734485901288,2.26,222.38,222.24,2.26]
[1734485901478,2.26,222.37,222.24,3.7553]
[1734485901679,13.57086461,222.35,222.24,3.7553]
[1734485901882,13.57086461,222.35,222.24,2.26]
[1734485902087,13.57086461,222.35,222.21,2.26]
[1734485902487,2.26,222.34,222.22,5.4622429]
[1734485902681,13.57086461,222.31,222.16,2.26]
[1734485902880,2.2495,222.24,222.16,4.5102]
[1734485903286,2.2495,222.24,222.18,5.42119777]
[1734485904188,2.2493,222.26,222.18,7.67119777]
[1734485904388,13.57086461,222.36,222.18,5.42119777]
[1734485904690,2.26,222.37,222.21,13.57086461]
[1734485904990,2.2484,222.34,222.22,2.26]
[1734485905389,2.2483,222.36,222.23,1.4884]
[1734485905589,2.26,222.39,222.23,1.4884]
[1734485906088,2.26,222.43,222.23,1.4884]
[1734485906283,15.83086461,222.43,222.23,1.4884]
[1734485907287,15.83086461,222.43,222.24,0.82673335]
[1734485907491,15.83086461,222.43,222.23,1.4884]
[1734485907687,22.10755558,222.47,222.25,13.57086461]
[1734485907887,22.10755558,222.47,222.26,1.565]
[1734485908086,22.10755558,222.47,222.27,3.08662248]
[1734485908288,2.2478,222.4,222.33,2.2485]
[1734485908493,2.2478,222.4,222.34,2.26]
[1734485908694,2.2478,222.4,222.35,2.26]
[1734485908894,2.2478,222.4,222.36,2.26]
[1734485910295,13.57086461,222.47,222.36,2.26]
[1734485910495,2.2474,222.45,222.36,2.26]
[1734485910689,13.57086461,222.47,222.36,2.26]
[1734485911098,15.83086461,222.47,222.35,2.26]
[1734485911398,2.2479,222.39,222.35,2.26]
[1734485912898,15.83086461,222.47,222.35,2.26]
[1734485913196,7.53778742,222.5,222.35,2.26]
[1734485913791,5.27778742,222.5,222.35,2.26]
[1734485913990,15.83086461,222.51,222.35,2.26]
[1734485913991,2.2472,222.47,222.39,2.2479]